fUSD/lending_fUSD_20250117
["ID","MTS","AMOUNT","RATE_DAILY","PERIOD"]
[349260771,1737081033511,-398.23,0.00026397,7]
[349260772,1737081033521,-500.0,0.00026397,7]
[349260773,1737081033531,-500.0,0.00026397,7]
[349260774,1737081033541,-500.0,0.00026397,7]
[349260775,1737081033551,-500.0,0.00026397,7]
[349260776,1737081033561,-500.0,0.00026397,7]
[349260777,1737081033570,-500.0,0.00026397,7]
[349260778,1737081033580,-500.0,0.00026397,7]
[349260779,1737081033589,-500.0,0.00026397,7]
[349260780,1737081033598,-500.0,0.00026397,7]
[349260781,1737081033607,-500.0,0.00026397,7]
[349260782,1737081033617,-500.0,0.00026397,7]
[349260783,1737081033630,-500.0,0.00026397,7]
[349260784,1737081033640,-500.0,0.00026397,7]
[349260785,1737081033649,-500.0,0.00026397,7]
[349260786,1737081033659,-500.0,0.00026397,7]
[349260787,1737081033668,-500.0,0.00026397,7]
[349260788,1737081033677,-500.0,0.00026397,7]
[349260789,1737081033687,-500.0,0.00026397,7]
[349260790,1737081033696,-500.0,0.00026397,7]
[349260791,1737081033705,-500.0,0.00026397,7]
[349260792,1737081033715,-634.48,0.00026397,7]
[349260793,1737081033724,-500.0,0.00026397,7]
[349260794,1737081033734,-500.0,0.00026397,7]
[349260795,1737081033745,-846.68,0.00026549,2]
[349260796,1737081033754,-2037.8867,0.000268,2]
[349260797,1737081033764,-300.0,0.000268,2]
[349260798,1737081033773,-172.03,0.00026848,2]
[349260799,1737081033783,-213.9069502,0.00026849,4]
[349260800,1737081033795,-2008.22,0.00026849,30]
[349260801,1737081033805,-261.4457,0.000269,2]
[349260802,1737081033815,-1000.0,0.000269,2]
[349260803,1737081033825,-220.0,0.000269,2]
[349260804,1737081033834,-736.1003,0.000269,2]
[349260805,1737081033844,-325.19165361,0.000269,30]
[349260806,1737081033854,-223.25220864,0.00026932,2]
[349260807,1737081033864,-223.25220864,0.00026973,2]
[349260808,1737081033873,-622.0,0.00027,5]
[349260809,1737081033883,-46511.0,0.00027,2]
[349260810,1737081033892,-223.25220864,0.00027013,2]
[349260811,1737081033902,-223.25220864,0.00027054,2]
[349260812,1737081033911,-150.0,0.00027064,2]
[349260813,1737081033921,-150.0,0.00027064,2]
[349260814,1737081033930,-150.0,0.00027067,2]
[349260815,1737081033939,-150.0,0.00027072,2]
[349260816,1737081033949,-150.0,0.00027078,2]
[349260817,1737081033958,-150.0,0.00027079,2]
[349260818,1737081033967,-150.0,0.00027084,2]
[349260819,1737081033977,-150.0,0.00027085,2]
[349260820,1737081033986,-150.0,0.00027087,2]
[349260821,1737081033996,-150.0,0.00027088,2]
[349260822,1737081034006,-150.0,0.00027089,2]
[349260823,1737081034016,-150.0,0.0002709,2]
[349260824,1737081034027,-150.0,0.00027091,2]
[349260825,1737081034039,-150.0,0.00027092,2]
[349260826,1737081034049,-150.0,0.00027093,2]
[349260827,1737081034059,-150.0,0.00027094,2]
[349260828,1737081034070,-223.25220864,0.00027094,2]
[349260829,1737081034079,-150.0,0.00027095,2]
[349260830,1737081034089,-150.0,0.00027095,2]
[349260831,1737081034098,-150.0,0.00027098,2]
[349260832,1737081034110,-429.95363263,0.00027098,2]
[349260833,1737081034120,-150.0,0.00027099,2]
[349260834,1737081034130,-150.0,0.000271,2]
[349260835,1737081034139,-150.0,0.000271,2]
[349260836,1737081034150,-150.0,0.00027101,2]
[349260837,1737081034159,-150.0,0.00027106,2]
[349260838,1737081034169,-150.0,0.00027107,2]
[349260839,1737081034180,-150.0,0.00027119,2]
[349260840,1737081034189,-3000.0,0.0002712,2]
[349260841,1737081034200,-150.0,0.00027122,2]
[349260842,1737081034210,-150.0,0.00027122,2]
[349260843,1737081034219,-2008.22,0.00027123,30]
[349260844,1737081034229,-150.0,0.00027128,2]
[349260845,1737081034238,-150.0,0.00027131,2]
[349260846,1737081034248,-150.0,0.00027132,2]
[349260847,1737081034257,-150.0,0.00027134,2]
[349260848,1737081034267,-223.25220864,0.00027135,2]
[349260849,1737081034276,-150.0,0.00027135,2]
[349260850,1737081034286,-150.0,0.00027135,2]
[349260851,1737081034298,-150.0,0.00027136,2]
[349260852,1737081034307,-150.0,0.00027137,2]
[349260853,1737081034316,-150.0,0.00027144,2]
[349260854,1737081034325,-150.0,0.00027144,2]
[349260855,1737081034335,-150.0,0.00027146,2]
[349260856,1737081034344,-150.0,0.00027149,2]
[349260857,1737081034354,-150.0,0.0002715,2]
[349260858,1737081034363,-150.0,0.00027153,2]
[349260859,1737081034372,-150.0,0.00027153,2]
[349260860,1737081034382,-150.0,0.00027153,2]
[349260861,1737081034392,-150.0,0.00027158,2]
[349260862,1737081034402,-150.0,0.00027164,2]
[349260863,1737081034411,-429.95363263,0.00027164,2]
[349260864,1737081034421,-150.0,0.00027165,2]
[349260865,1737081034430,-150.0,0.00027166,2]
[349260866,1737081034440,-150.0,0.0002717,2]
[349260867,1737081034450,-150.0,0.00027173,2]
[349260868,1737081034459,-223.25220864,0.00027175,2]
[349260869,1737081034469,-150.0,0.00027179,2]
[349260870,1737081034479,-150.0,0.0002718,2]
[349260871,1737081034489,-1000.0,0.00027181,2]
[349260872,1737081034499,-150.0,0.00027182,2]
[349260873,1737081034508,-349.13214108,0.00027184,2]
[349260874,1737081034517,-263.66308085,0.00027185,2]
[349260875,1737081034528,-14996.82021436,0.00027187,2]
[349260876,1737081034537,-150.0,0.00027188,2]
[349260877,1737081034550,-150.0,0.00027188,2]
[349260878,1737081034560,-150.0,0.0002719,2]
[349260879,1737081034569,-349.13214108,0.00027192,2]
[349260880,1737081034580,-5689.81479778,0.00027194,2]
[349260881,1737081034589,-705.2617,0.00027197,2]
[349260882,1737081034600,-450.3679,0.00027197,2]
[349260883,1737081034609,-1541.45632035,0.00027197,2]
[349260884,1737081034623,-958.54367965,0.00027197,2]
[349260885,1737081034633,-150.0,0.00027197,2]
[349260886,1737081034644,-150.0,0.000272,2]
[349260887,1737081034655,-372.7713527,0.00027202,2]
[349260888,1737081034665,-349.13214108,0.00027203,2]
[349260889,1737081034675,-150.0,0.00027206,2]
[349260890,1737081034685,-263.66308085,0.00027208,2]
[349260891,1737081034694,-150.0,0.00027209,2]
[349260892,1737081034705,-14996.82021436,0.0002721,2]
[349260893,1737081034715,-372.7713527,0.00027211,2]
[349260894,1737081034727,-5689.81479778,0.00027213,2]
[349260895,1737081034737,-223.25220864,0.00027216,2]
[349260896,1737081034747,-150.0,0.00027219,2]
[349260897,1737081034756,-150.0,0.00027224,2]
[349260898,1737081034766,-150.0,0.00027224,2]
[349260899,1737081034775,-372.7713527,0.00027224,2]
[349260900,1737081034784,-263.66308085,0.00027229,2]
[349260901,1737081034796,-150.0,0.0002723,2]
[349260902,1737081034806,-263.66308085,0.00027231,2]
[349260903,1737081034815,-200.0,0.00027232,2]
[349260904,1737081034824,-263.66308085,0.00027237,2]
[349260905,1737081034835,-150.0,0.00027238,2]
[349260906,1737081034844,-150.0,0.00027248,2]
[349260907,1737081034855,-372.7713527,0.00027255,2]
[349260908,1737081034864,-223.25220864,0.00027256,2]
[349260909,1737081034873,-150.0,0.00027258,2]
[349260910,1737081034883,-772.46,0.0002726,2]
[349260911,1737081034893,-772.46,0.0002726,2]
[349260912,1737081034903,-150.0,0.00027262,2]
[349260913,1737081034914,-372.7713527,0.00027265,2]
[349260914,1737081034925,-5689.81479778,0.00027266,2]
[349260915,1737081034936,-14996.82021436,0.00027268,2]
[349260916,1737081034948,-150.0,0.00027269,2]
[349260917,1737081034958,-150.0,0.0002727,2]
[349260918,1737081034967,-150.0,0.00027273,2]
[349260919,1737081034977,-14996.82021436,0.00027274,2]
[349260920,1737081034986,-5689.81479778,0.00027275,2]
[349260921,1737081034995,-150.0,0.00027275,2]
[349260923,1737081035010,-150.0,0.00027277,2]
[349260924,1737081035019,-349.13214108,0.00027277,2]
[349260925,1737081035032,-150.0,0.00027279,2]
[349260926,1737081035043,-200.0,0.00027283,2]
[349260927,1737081035053,-5689.81479778,0.00027283,2]
[349260928,1737081035063,-150.0,0.00027284,2]
[349260929,1737081035072,-1000.0,0.00027284,2]
[349260930,1737081035082,-14996.82021436,0.00027286,2]
[349260931,1737081035091,-5689.81479778,0.00027288,2]
[349260932,1737081035101,-150.0,0.0002729,2]
[349260933,1737081035112,-168.40917983,0.00027291,2]
[349260934,1737081035121,-5800.0,0.00027292,2]
[349260935,1737081035131,-263.66308085,0.00027292,2]
[349260936,1737081035140,-8023.5529,0.00027297,2]
[349260937,1737081035150,-5000.0,0.00027297,2]
[349260938,1737081035160,-55555.0,0.00027297,3]
[349260939,1737081035170,-214.737904,0.00027297,2]
[349260940,1737081035180,-223.25220864,0.00027297,2]
[349260941,1737081035189,-497.16499344,0.00027297,2]
[349260942,1737081035199,-14330.88236439,0.00027297,2]
[349260943,1737081035209,-191.54141768,0.00027297,2]
[349260944,1737081035219,-434.81198124,0.00027297,2]
[349260945,1737081035228,-27201.58599115,0.00027297,2]
[349260946,1737081035238,-150.0,0.00027298,2]
[349260947,1737081035247,-150.0,0.00027298,2]
[349260948,1737081035256,-5689.81479778,0.00027299,2]
[349260949,1737081035266,-5800.0,0.000273,2]
[349260950,1737081035275,-150.0,0.000273,2]
[349260951,1737081035284,-200.0,0.00027301,2]
[349260952,1737081035295,-150.0,0.00027301,2]
[349260953,1737081035304,-150.0,0.00027303,2]
[349260954,1737081035314,-150.0,0.00027305,2]
[349260955,1737081035323,-150.0,0.00027306,2]
[349260956,1737081035333,-349.13214108,0.00027307,2]
[349260957,1737081035343,-372.7713527,0.0002731,2]
[349260958,1737081035355,-150.0,0.0002731,2]
[349260959,1737081035365,-349.13214108,0.0002731,2]
[349260960,1737081035374,-372.7713527,0.00027313,2]
[349260961,1737081035384,-150.0,0.00027314,2]
[349260962,1737081035393,-150.0,0.00027314,2]
[349260963,1737081035403,-150.0,0.00027316,2]
[349260964,1737081035412,-200.0,0.00027319,2]
[349260965,1737081035422,-150.0,0.00027321,2]
[349260966,1737081035431,-150.0,0.00027323,2]
[349260967,1737081035441,-14996.82021436,0.00027326,2]
[349260968,1737081035451,-5689.81479778,0.00027326,2]
[349260969,1737081035460,-150.0,0.00027327,2]
[349260970,1737081035470,-150.0,0.00027327,2]
[349260971,1737081035479,-150.0,0.00027328,2]
[349260972,1737081035489,-150.0,0.00027329,2]
[349260973,1737081035499,-150.0,0.00027332,2]
[349260974,1737081035508,-150.0,0.00027335,2]
[349260975,1737081035519,-150.0,0.00027335,2]
[349260976,1737081035530,-150.0,0.00027337,2]
[349260977,1737081035542,-150.0,0.00027337,2]
[349260978,1737081035551,-14996.82021436,0.00027338,2]
[349260979,1737081035560,-1000.0,0.00027339,2]
[349260980,1737081035570,-263.66308085,0.00027341,2]
[349260981,1737081035580,-150.0,0.00027344,2]
[349260982,1737081035590,-200.0,0.00027345,2]
[349260983,1737081035600,-349.13214108,0.00027346,2]
[349260984,1737081035609,-14996.82021436,0.0002735,2]
[349260985,1737081035621,-150.0,0.00027358,2]
[349260986,1737081035631,-349.13214108,0.00027359,2]
[349260987,1737081035643,-372.7713527,0.00027361,2]
[349260988,1737081035653,-263.66308085,0.00027366,2]
[349260989,1737081035663,-22.967505,0.00027366,2]
[349260990,1737081035673,-500.0,0.00027373,2]
[349260991,1737081035683,-500.07295682,0.00027373,2]
[349260992,1737081035692,-500.0,0.00027373,2]
[349260993,1737081035702,-501.57302072,0.00027373,2]
[349260994,1737081035711,-500.86127578,0.00027373,2]
[349260995,1737081035721,-587.52103486,0.00027373,2]
[349260996,1737081035730,-325.53585892,0.00027373,2]
[349260997,1737081035740,-151.0636998,0.00027373,2]
[349260998,1737081035749,-163.25479823,0.00027373,2]
[349260999,1737081035759,-153.30561424,0.00027373,2]
[349261000,1737081035769,-151.93168127,0.00027373,2]
[349261001,1737081035778,-500.0,0.00027373,2]
[349261002,1737081035787,-285.05173456,0.00027373,2]
[349261003,1737081035799,-8157.16997187,0.00027391,3]
[349261004,1737081035808,-6431.2137829,0.00027391,2]
[349261005,1737081035819,-2279.6753718,0.00027391,2]
[349261006,1737081035829,-500.0,0.00027396,2]
[349261007,1737081035838,-500.0,0.00027396,2]
[349261008,1737081035849,-150.0,0.00027397,30]
[349261009,1737081035858,-459.96583055,0.00027397,3]
[349261010,1737081035867,-238.93738703,0.00027397,3]
[349261011,1737081035877,-1109.257478,0.00027397,2]
[349261012,1737081035886,-200.0,0.00027397,2]
[349261013,1737081035896,-500.0,0.00027397,3]
[349261014,1737081035905,-343.85578891,0.00027397,3]
[349261015,1737081035914,-151.0,0.00027397,7]
[349261016,1737081035923,-290.85175,0.00027397,7]
[349261017,1737081035934,-500.0,0.00027397,3]
[349261018,1737081035944,-507.20482572,0.00027397,3]
[349261019,1737081035953,-500.0,0.00027397,3]
[349261020,1737081035962,-500.0,0.00027397,3]
[349261021,1737081035973,-509.80426894,0.00027397,3]
[349261022,1737081035983,-315.98009748,0.00027397,3]
[349261023,1737081035992,-537.06943623,0.00027397,3]
[349261024,1737081036002,-194.86534115,0.00027397,3]
[349261025,1737081036011,-200.0,0.00027397,3]
[349261026,1737081036020,-200.0,0.00027397,3]
[349261027,1737081036034,-200.0,0.00027397,3]
[349261028,1737081036045,-200.0,0.00027397,3]
[349261029,1737081036054,-273.6,0.00027397,3]
[349261030,1737081036064,-509.42473137,0.00027397,3]
[349261031,1737081036074,-500.0,0.00027397,3]
[349261032,1737081036083,-500.0,0.00027397,3]
[349261033,1737081036093,-183.70976946,0.00027397,3]
[349261034,1737081036104,-628.90570812,0.00027397,3]
[349261035,1737081036113,-500.0,0.00027397,3]
[349261036,1737081036123,-500.0,0.00027397,3]
[349261037,1737081036132,-504.43510212,0.00027397,3]
[349261038,1737081036142,-500.0,0.00027397,3]
[349261039,1737081036151,-500.0,0.00027397,3]
[349261040,1737081036160,-254.86219839,0.00027397,3]
[349261041,1737081036170,-500.0,0.00027397,3]
[349261042,1737081036179,-500.0,0.00027397,3]
[349261043,1737081036188,-500.0,0.00027397,3]
[349261044,1737081036198,-500.0,0.00027397,3]
[349261045,1737081036207,-500.0,0.00027397,3]
[349261046,1737081036216,-500.0,0.00027397,3]
[349261047,1737081036226,-500.0,0.00027397,3]
[349261048,1737081036235,-500.0,0.00027397,3]
[349261049,1737081036244,-500.0,0.00027397,3]
[349261050,1737081036253,-500.0,0.00027397,3]
[349261051,1737081036262,-500.0,0.00027397,3]
[349261052,1737081036272,-500.0,0.00027397,3]
[349261053,1737081036283,-500.0,0.00027397,3]
[349261054,1737081036309,-500.0,0.00027397,3]
[349261055,1737081036326,-500.0,0.00027397,3]
[349261056,1737081036335,-500.0,0.00027397,3]
[349261057,1737081036344,-500.0,0.00027397,3]
[349261058,1737081036354,-500.0,0.00027397,3]
[349261059,1737081036363,-500.0,0.00027397,3]
[349261060,1737081036373,-408.96592157,0.00027397,3]
[349261061,1737081036382,-163.38311584,0.00027397,3]
[349261062,1737081036392,-500.0,0.00027397,3]
[349261063,1737081036401,-507.42350897,0.00027397,3]
[349261064,1737081036415,-578.92388049,0.00027397,3]
[349261065,1737081036424,-500.0,0.00027397,3]
[349261066,1737081036435,-500.0,0.00027397,3]
[349261067,1737081036447,-506.90868796,0.00027397,3]
[349261068,1737081036457,-218.6852537,0.00027397,3]
[349261069,1737081036469,-500.0,0.00027397,3]
[349261070,1737081036480,-500.0,0.00027397,3]
[349261071,1737081036490,-500.0,0.00027397,3]
[349261072,1737081036500,-500.0,0.00027397,3]
[349261073,1737081036510,-500.0,0.00027397,3]
[349261074,1737081036519,-500.0,0.00027397,3]
[349261075,1737081036529,-500.0,0.00027397,3]
[349261076,1737081036539,-500.0,0.00027397,3]
[349261077,1737081036550,-500.0,0.00027397,3]
[349261078,1737081036559,-500.0,0.00027397,3]
[349261079,1737081036569,-500.0,0.00027397,3]
[349261080,1737081036580,-500.0,0.00027397,3]
[349261081,1737081036590,-500.0,0.00027397,3]
[349261082,1737081036600,-500.0,0.00027397,3]
[349261083,1737081036610,-507.3,0.00027397,3]
[349261084,1737081036620,-500.0,0.00027397,3]
[349261085,1737081036630,-271.13988576,0.00027397,3]
[349261086,1737081036640,-500.0,0.00027397,3]
[349261087,1737081036649,-500.0,0.00027397,3]
[349261088,1737081036659,-500.0,0.00027397,3]
[349261089,1737081036670,-500.0,0.00027397,3]
[349261090,1737081036681,-500.0,0.00027397,3]
[349261091,1737081036691,-500.0,0.00027397,3]
[349261092,1737081036700,-500.0,0.00027397,3]
[349261093,1737081036710,-500.0,0.00027397,3]
[349261094,1737081036720,-500.0,0.00027397,3]
[349261095,1737081036730,-500.0,0.00027397,3]
[349261096,1737081036741,-500.0,0.00027397,3]
[349261097,1737081036752,-500.0,0.00027397,3]
[349261098,1737081036762,-500.0,0.00027397,3]
[349261099,1737081036773,-500.0,0.00027397,3]
[349261100,1737081036783,-500.0,0.00027397,3]
[349261101,1737081036793,-500.0,0.00027397,3]
[349261102,1737081036803,-500.0,0.00027397,3]
[349261103,1737081036813,-500.0,0.00027397,3]
[349261104,1737081036825,-500.0,0.00027397,3]
[349261105,1737081036837,-500.0,0.00027397,3]
[349261106,1737081036847,-500.0,0.00027397,3]
[349261107,1737081036858,-453.02251103,0.00027397,3]
[349261108,1737081036868,-500.0,0.00027397,3]
[349261109,1737081036878,-591.89,0.00027397,3]
[349261110,1737081036888,-500.0,0.00027397,3]
[349261111,1737081036898,-500.0,0.00027397,3]
[349261112,1737081036908,-500.0,0.00027397,3]
[349261113,1737081036918,-219.9287659,0.00027397,3]
[349261114,1737081036928,-500.0,0.00027397,3]
[349261115,1737081036939,-510.85719608,0.00027397,3]
[349261116,1737081036949,-500.0,0.00027397,3]
[349261117,1737081036959,-500.0,0.00027397,3]
[349261118,1737081036969,-500.0,0.00027397,3]
[349261119,1737081036979,-500.0,0.00027397,3]
[349261120,1737081036990,-346.22454644,0.00027397,3]
[349261121,1737081037000,-504.33388634,0.00027397,3]
[349261122,1737081037010,-500.0,0.00027397,3]
[349261123,1737081037020,-500.0,0.00027397,3]
[349261124,1737081037034,-511.43204497,0.00027397,3]
[349261125,1737081037045,-504.75235772,0.00027397,3]
[349261126,1737081037055,-500.0,0.00027397,3]
[349261127,1737081037067,-509.748732,0.00027397,3]
[349261128,1737081037077,-511.92517816,0.00027397,3]
[349261129,1737081037087,-500.0,0.00027397,3]
[349261130,1737081037097,-500.0,0.00027397,3]
[349261131,1737081037108,-500.0,0.00027397,3]
[349261132,1737081037118,-151.0,0.00027397,7]
[349261133,1737081037128,-502.76820675,0.00027397,3]
[349261134,1737081037139,-500.0,0.00027397,3]
[349261135,1737081037149,-271.949521,0.00027397,7]
[349261136,1737081037159,-500.0,0.00027397,3]
[349261137,1737081037169,-500.0,0.00027397,3]
[349261138,1737081037179,-355.10709045,0.00027397,3]
[349261139,1737081037190,-500.0,0.00027397,3]
[349261140,1737081037201,-500.0,0.00027397,3]
[349261141,1737081037211,-500.0,0.00027397,3]
[349261142,1737081037220,-500.0,0.00027397,3]
[349261143,1737081037230,-500.0,0.00027397,3]
[349261144,1737081037239,-500.0,0.00027397,3]
[349261145,1737081037249,-500.0,0.00027397,3]
[349261146,1737081037259,-500.0,0.00027397,3]
[349261147,1737081037272,-285.74092604,0.00027397,3]
[349261148,1737081037282,-502.89467392,0.00027397,3]
[349261149,1737081037293,-500.0,0.00027397,3]
[349261150,1737081037303,-517.47452384,0.00027397,3]
[349261151,1737081037314,-506.1724976,0.00027397,3]
[349261152,1737081037324,-500.0,0.00027397,3]
[349261153,1737081037334,-500.0,0.00027397,3]
[349261154,1737081037344,-500.0,0.00027397,3]
[349261155,1737081037355,-500.0,0.00027397,3]
[349261156,1737081037366,-500.0,0.00027397,3]
[349261157,1737081037375,-500.0,0.00027397,3]
[349261158,1737081037386,-500.0,0.00027397,3]
[349261159,1737081037396,-500.0,0.00027397,3]
[349261160,1737081037407,-520.06067915,0.00027397,3]
[349261161,1737081037417,-500.0,0.00027397,3]
[349261162,1737081037427,-500.0,0.00027397,3]
[349261163,1737081037436,-510.49590963,0.00027397,3]
[349261164,1737081037446,-500.0,0.00027397,3]
[349261165,1737081037456,-234.00892803,0.00027397,3]
[349261166,1737081037466,-503.78626023,0.00027397,3]
[349261167,1737081037476,-500.0,0.00027397,3]
[349261168,1737081037487,-500.0,0.00027397,3]
[349261169,1737081037498,-464.0969115,0.00027397,3]
[349261170,1737081037508,-500.0,0.00027397,3]
[349261171,1737081037518,-507.96851624,0.00027397,3]
[349261172,1737081037528,-500.0,0.00027397,3]
[349261173,1737081037539,-500.0,0.00027397,3]
[349261174,1737081037549,-500.0,0.00027397,3]
[349261175,1737081037561,-500.0,0.00027397,3]
[349261176,1737081037570,-500.0,0.00027397,3]
[349261177,1737081037580,-502.88662832,0.00027397,3]
[349261178,1737081037590,-500.0,0.00027397,3]
[349261179,1737081037600,-500.0,0.00027397,3]
[349261180,1737081037610,-500.0,0.00027397,3]
[349261181,1737081037621,-516.28770156,0.00027397,3]
[349261182,1737081037631,-586.32,0.00027397,3]
[349261183,1737081037642,-586.32,0.00027397,3]
[349261184,1737081037653,-586.32,0.00027397,3]
[349261185,1737081037663,-586.32,0.00027397,3]
[349261186,1737081037674,-586.32,0.00027397,3]
[349261187,1737081037684,-586.32,0.00027397,3]
[349261188,1737081037695,-586.32,0.00027397,3]
[349261189,1737081037705,-621.96955382,0.00027397,3]
[349261190,1737081037715,-513.93602076,0.00027397,3]
[349261191,1737081037725,-586.32,0.00027397,3]
[349261192,1737081037736,-586.32,0.00027397,3]
[349261193,1737081037746,-586.32,0.00027397,3]
[349261194,1737081037757,-586.32,0.00027397,3]
[349261195,1737081037767,-586.32,0.00027397,3]
[349261196,1737081037777,-586.32,0.00027397,3]
[349261197,1737081037788,-586.32,0.00027397,3]
[349261198,1737081037798,-506.09418802,0.00027397,3]
[349261199,1737081037808,-586.32,0.00027397,3]
[349261200,1737081037819,-500.0,0.00027397,3]
[349261201,1737081037829,-586.32,0.00027397,3]
[349261202,1737081037839,-500.0,0.00027397,3]
[349261203,1737081037850,-586.32,0.00027397,3]
[349261204,1737081037862,-509.57794973,0.00027397,3]
[349261205,1737081037873,-586.32,0.00027397,3]
[349261206,1737081037884,-500.0,0.00027397,3]
[349261207,1737081037894,-586.32,0.00027397,3]
[349261208,1737081037904,-500.0,0.00027397,3]
[349261209,1737081037914,-586.32,0.00027397,3]
[349261210,1737081037924,-500.0,0.00027397,3]
[349261211,1737081037934,-586.32,0.00027397,3]
[349261212,1737081037944,-510.023893,0.00027397,3]
[349261213,1737081037954,-586.32,0.00027397,3]
[349261214,1737081037964,-500.0,0.00027397,3]
[349261215,1737081037974,-518.25640548,0.00027397,3]
[349261216,1737081037985,-586.32,0.00027397,3]
[349261217,1737081037995,-586.37942527,0.00027397,3]
[349261218,1737081038006,-500.0,0.00027397,3]
[349261219,1737081038017,-506.69796119,0.00027397,3]
[349261220,1737081038030,-506.91048097,0.00027397,3]
[349261221,1737081038041,-500.0,0.00027397,3]
[349261222,1737081038051,-638.63426312,0.00027397,3]
[349261223,1737081038062,-500.0,0.00027397,3]
[349261224,1737081038074,-510.0545958,0.00027397,3]
[349261225,1737081038084,-506.92070378,0.00027397,3]
[349261226,1737081038094,-500.0,0.00027397,3]
[349261227,1737081038105,-500.0,0.00027397,3]
[349261228,1737081038115,-500.0,0.00027397,3]
[349261229,1737081038126,-500.0,0.00027397,3]
[349261230,1737081038136,-500.0,0.00027397,3]
[349261231,1737081038147,-500.0,0.00027397,3]
[349261232,1737081038156,-511.87151547,0.00027397,3]
[349261233,1737081038167,-500.0,0.00027397,3]
[349261234,1737081038177,-500.0,0.00027397,3]
[349261235,1737081038187,-500.0,0.00027397,3]
[349261236,1737081038197,-500.0,0.00027397,3]
[349261237,1737081038207,-519.74742772,0.00027397,3]
[349261238,1737081038218,-500.0,0.00027397,3]
[349261239,1737081038228,-461.45656736,0.00027397,3]
[349261240,1737081038238,-505.26444715,0.00027397,3]
[349261241,1737081038247,-500.0,0.00027397,3]
[349261242,1737081038257,-562.85290446,0.00027397,3]
[349261243,1737081038267,-500.0,0.00027397,3]
[349261244,1737081038277,-500.0,0.00027397,3]
[349261245,1737081038286,-512.94047981,0.00027397,3]
[349261246,1737081038296,-500.0,0.00027397,3]
[349261247,1737081038314,-500.0,0.00027397,3]
[349261248,1737081038324,-500.0,0.00027397,3]
[349261249,1737081038334,-151.0,0.00027397,7]
[349261250,1737081038343,-500.0,0.00027397,3]
[349261251,1737081038354,-230.17673455,0.00027397,3]
[349261252,1737081038364,-500.0,0.00027397,3]
[349261253,1737081038373,-239.78695163,0.00027397,3]
[349261254,1737081038383,-500.0,0.00027397,3]
[349261255,1737081038393,-501.08724598,0.00027397,3]
[349261257,1737081038404,-518.18907918,0.00027397,3]
[349261259,1737081038413,-523.07817634,0.00027397,3]
[349261261,1737081038424,-500.0,0.00027397,3]
[349261263,1737081038434,-500.0,0.00027397,3]
[349261264,1737081038444,-500.0,0.00027397,3]
[349261265,1737081038454,-521.86529998,0.00027397,3]
[349261266,1737081038464,-500.0,0.00027397,3]
[349261268,1737081038474,-313.53941517,0.00027397,3]
[349261269,1737081038484,-500.0,0.00027397,3]
[349261270,1737081038494,-562.21266815,0.00027397,3]
[349261271,1737081038504,-544.6905885,0.00027397,3]
[349261273,1737081038515,-500.0,0.00027397,3]
[349261274,1737081038525,-500.0,0.00027397,3]
[349261275,1737081038535,-500.0,0.00027397,3]
[349261276,1737081038546,-657.74,0.00027397,3]
[349261277,1737081038557,-500.0,0.00027397,3]